bitfinex/quotes_ETHUSD_20250323
["timestamp","ask_amount","ask_price","bid_price","bid_amount"]
[1742737447149,10.72916,2016.8,2016.6,0.33217298]
[1742737448097,4.95859,2016.7,2016.6,0.33217298]
[1742737465133,8.74249,2016.7,2016.6,0.33217298]
[1742737465428,8.74249,2016.7,2016.0,0.3817]
[1742737465429,9.82451,2016.7,2016.4,4.95919]
[1742737465591,7.95859,2016.7,2016.4,4.95919]
[1742737465790,7.95859,2016.7,2016.5,0.33349259]
[1742737466122,7.95859,2016.7,2016.3,5.34119]
[1742737466300,3.0,2016.7,2016.6,0.33317544]
[1742737466502,4.95725,2017.3,2016.8,4.95813]
[1742737466705,3.0,2017.1,2016.8,4.95813]
[1742737467028,3.0,2017.1,2016.9,0.33229938]
[1742737467227,3.0,2017.1,2017.0,4.624]
[1742737467596,7.95761,2017.1,2017.0,4.95598235]
[1742737469325,3.0,2017.1,2017.0,4.95598235]
[1742737473010,4.95747,2017.2,2017.0,4.95598235]
[1742737473011,3.0,2017.2,2017.0,4.95598235]
[1742737473522,7.95737,2017.2,2017.0,4.95598235]
[1742737475211,12.91492,2017.2,2017.0,4.95598235]
[1742737475411,4.95761,2017.1,2017.0,4.95598235]
[1742737477846,7.95761,2017.1,2017.0,4.95598235]
[1742737478017,8.77531,2017.1,2017.0,4.95598235]
[1742737478351,10.18661373,2017.1,2017.0,0.33198235]
[1742737479635,4.9581,2016.9,2016.8,5.08483296]
[1742737479829,3.0,2016.9,2016.8,5.0047]
[1742737480750,9.91543,2017.1,2016.8,5.0047]
[1742737481251,4.95789,2017.0,2016.8,4.623]
[1742737482153,9.91597,2017.0,2016.8,4.623]
[1742737482969,4.9581,2016.9,2016.8,4.623]
[1742737483536,5.7758,2016.9,2016.8,4.623]
[1742737484384,5.7758,2016.9,2016.6,26.218]
[1742737484538,5.7758,2016.9,2016.7,4.623]
[1742737484878,5.7758,2016.9,2016.8,0.33136333]
[1742737492398,5.7758,2016.9,2016.6,30.841]
[1742737492787,5.7758,2016.9,2016.7,0.33195607]
[1742737492990,5.7758,2016.9,2016.6,30.841]
[1742737493162,5.7758,2016.9,2016.7,0.33195607]
[1742737493364,5.7758,2016.9,2016.6,4.623]
[1742737493562,10.73409,2016.9,2016.7,0.33195607]
[1742737493762,10.73409,2016.9,2016.6,4.623]
[1742737494074,10.73409,2016.9,2016.7,0.33195607]
[1742737494274,4.95834,2016.8,2016.7,0.33195607]
[1742737494476,4.95834,2016.8,2016.6,4.623]
[1742737494689,4.95834,2016.8,2016.7,0.33238217]
[1742737495097,4.95834,2016.8,2016.6,4.623]
[1742737495299,4.95834,2016.8,2016.7,0.33238217]
[1742737495623,4.95834,2016.8,2016.6,4.623]
[1742737495823,4.95834,2016.8,2016.7,0.33245736]
[1742737496026,4.95834,2016.8,2016.6,4.623]
[1742737496325,4.95834,2016.8,2016.7,0.33245736]
[1742737496696,4.95834,2016.8,2016.6,4.623]
[1742737497034,4.95834,2016.8,2016.7,0.33245736]
[1742737497229,4.95834,2016.8,2016.6,4.623]
[1742737497438,9.91688,2016.8,2016.7,0.33245736]
[1742737497643,9.91688,2016.8,2016.6,4.623]
[1742737497810,4.95834,2016.8,2016.7,0.33248242]
[1742737498016,4.95834,2016.8,2016.6,4.623]
[1742737498216,9.91682,2016.8,2016.7,0.33248242]
[1742737498405,9.91682,2016.8,2016.6,4.623]
[1742737498741,4.95834,2016.8,2016.7,0.33248242]
[1742737499027,4.95834,2016.8,2016.6,4.623]
[1742737499215,4.95834,2016.8,2016.7,0.33255761]
[1742737499525,4.95834,2016.8,2016.6,4.623]
[1742737499727,4.95834,2016.8,2016.7,0.33255761]
[1742737500138,4.95834,2016.8,2016.6,4.623]
[1742737500306,4.95834,2016.8,2016.7,0.33253255]
[1742737500705,4.95834,2016.8,2016.6,4.623]
[1742737500901,4.95834,2016.8,2016.7,0.33253255]
[1742737501308,4.95834,2016.8,2016.6,4.623]
[1742737501605,4.95834,2016.8,2016.7,0.33253255]
[1742737501805,4.95834,2016.8,2016.6,4.623]
[1742737502036,4.95834,2016.8,2016.7,0.33253255]
[1742737502233,4.95834,2016.8,2016.6,4.623]
[1742737502437,9.91691,2016.8,2016.7,0.33253255]
[1742737502606,9.91691,2016.8,2016.6,4.623]
[1742737502811,9.91691,2016.8,2016.7,0.33253255]
[1742737503022,4.95834,2016.8,2016.6,4.623]
[1742737503208,4.95834,2016.8,2016.7,0.33253255]
[1742737503408,4.95834,2016.8,2016.6,4.623]
[1742737503632,4.95834,2016.8,2016.7,0.33253255]
[1742737503936,4.95859,2016.7,2016.6,4.623]
[1742737504633,5.3337725,2016.7,2016.6,4.623]
[1742737505149,0.3751825,2016.7,2016.6,4.623]
[1742737505326,4.95834,2016.8,2016.6,4.623]
[1742737505852,9.91688,2016.8,2016.6,4.623]
[1742737506546,4.95834,2016.8,2016.6,4.623]
[1742737506854,9.91693,2016.8,2016.6,4.623]
[1742737507154,4.95859,2016.7,2016.6,4.623]
[1742737508856,5.33465158,2016.7,2016.6,4.623]
[1742737512266,5.33465158,2016.7,2016.3,4.95952]
[1742737512467,6.12055158,2016.7,2016.5,4.623]
[1742737513669,5.33465158,2016.7,2016.5,4.623]
[1742737514884,5.33465158,2016.7,2016.6,0.33302506]
[1742737515483,4.95859,2016.7,2016.6,0.33302506]
[1742737519912,5.33633714,2016.7,2016.6,0.33302506]
[1742737524099,5.33633714,2016.7,2016.6,0.79631891]
[1742737524396,0.37774714,2016.7,2016.6,0.79631891]
[1742737524699,4.95834,2016.8,2016.6,0.79631891]
[1742737526403,5.74402,2016.9,2016.6,0.79631891]
[1742737526561,4.95812,2016.9,2016.6,0.33302506]
[1742737527300,9.91646,2016.9,2016.6,0.33302506]
[1742737527463,4.95835,2016.8,2016.6,0.33302506]
[1742737530061,0.7608,2017.1,2016.7,4.95859]
[1742737530296,8.71857,2017.1,2016.8,0.33236584]
[1742737531597,13.67641,2017.1,2016.8,0.33236584]
[1742737534814,13.67639,2017.1,2016.8,0.33236584]
[1742737536328,4.95788,2017.0,2016.8,0.33236584]
[1742737541551,8.71849,2017.1,2016.8,0.33236584]
[1742737542051,4.95786,2017.0,2016.8,0.33236584]
[1742737553460,4.95786,2017.0,2016.6,5.34038]
[1742737553773,4.95786,2017.0,2016.7,0.3321315]
[1742737554136,4.95786,2017.0,2016.6,5.34038]
[1742737554359,4.95786,2017.0,2016.8,0.33181441]
[1742737554671,4.95786,2017.0,2016.9,0.33149736]
[1742737554871,4.95786,2017.0,2016.6,10.29904]
[1742737555072,4.95786,2017.0,2016.7,0.3321315]
[1742737555573,4.95786,2017.0,2016.6,10.29904]
[1742737555755,4.95786,2017.0,2016.8,0.33181441]
[1742737555948,4.95786,2017.0,2016.7,0.79468014]
[1742737556149,4.95786,2017.0,2016.9,0.33149736]
[1742737556344,4.95786,2017.0,2016.8,0.33181441]
[1742737556649,4.95786,2017.0,2016.9,0.33149736]
[1742737556851,8.71841,2017.1,2016.7,5.42109864]
[1742737557041,13.17623,2017.1,2016.8,0.33181441]
[1742737557370,13.17623,2017.1,2016.8,0.79436305]
[1742737557874,4.9579,2017.0,2016.8,0.79436305]
[1742737558376,4.9579,2017.0,2016.8,0.33181441]
[1742737561378,4.9579,2017.0,2016.9,2.99454302]
[1742737561677,4.9579,2017.0,2016.9,3.32609054]
[1742737562478,3.2608,2017.1,2016.9,3.32609054]
[1742737562777,1.16195732,2017.3,2017.0,7.95239302]
[1742737562978,4.95712,2017.3,2017.2,2.99454302]
[1742737563474,7.95712,2017.3,2017.2,3.32513957]
[1742737563688,4.95698,2017.4,2017.2,3.32513957]
[1742737563984,6.82644408,2017.4,2017.3,1.49727151]
[1742737564144,6.82644408,2017.4,2017.3,1.82755113]
[1742737564995,1.50272849,2017.4,2017.3,1.82755113]
[1742737565199,4.95643,2017.6,2017.3,3.32482264]
[1742737565396,4.95643,2017.6,2017.5,1.49727151]
[1742737565710,4.95643,2017.6,2017.5,1.82599021]
[1742737583411,4.95596,2017.8,2017.5,1.82599021]
[1742737583617,4.95596,2017.8,2017.7,1.49727151]
[1742737583920,4.95596,2017.8,2017.7,1.82450466]
[1742737584141,5.7083,2018.0,2017.7,3.32177617]
[1742737584343,5.7083,2018.0,2017.9,1.49727151]
[1742737584729,5.7083,2018.0,2017.9,1.82359557]
[1742737585828,6.08927412,2018.0,2017.9,1.82359557]
[1742737586563,3.0,2018.1,2017.9,1.82359557]
[1742737586867,3.0,2018.1,2018.0,1.49727151]
[1742737587017,1.76624948,2018.4,2018.0,6.45262151]
[1742737587221,9.72075948,2018.4,2018.3,1.49727151]
[1742737587416,11.18826143,2018.4,2018.3,1.49727151]
[1742737587642,8.18826143,2018.4,2018.3,1.82127701]
[1742737587822,4.95441,2018.4,2018.3,1.82127701]
[1742737588031,7.95441,2018.4,2018.3,3.31854852]
[1742737588344,4.95417,2018.5,2018.3,3.31854852]
[1742737588542,4.95417,2018.5,2018.4,1.49727151]
[1742737588750,4.95417,2018.5,2018.4,1.82096042]
[1742737593362,5.70701,2018.6,2018.4,3.31823193]
[1742737593668,8.70701,2018.6,2018.5,1.49727151]
[1742737594168,8.70701,2018.6,2018.5,1.81854037]
[1742737594469,7.95392,2018.6,2018.5,1.81854037]
[1742737594851,4.95392,2018.6,2018.5,1.81854037]
[1742737595394,5.71382,2018.6,2018.5,1.81854037]
[1742737600486,4.95376,2018.7,2018.5,1.81854037]
[1742737600686,7.95376,2018.7,2018.6,1.49727151]
[1742737601183,7.95376,2018.7,2018.6,1.81822385]
[1742737603512,0.7599,2018.8,2018.6,6.77214385]
[1742737603725,4.9532,2018.9,2018.6,6.77214385]
[1742737603726,3.0,2018.9,2018.7,1.49727151]
[1742737603931,3.0,2018.9,2018.8,1.81576353]
[1742737604214,7.95321,2018.9,2018.8,1.81576353]
[1742737604507,3.0,2018.9,2018.8,1.81576353]
[1742737604897,3.0,2019.0,2018.8,1.81576353]
[1742737605107,3.0,2019.0,2018.9,1.49727151]
[1742737605291,3.0,2019.0,2018.9,1.81542208]
[1742737605491,4.95276,2019.1,2018.9,3.31269359]
[1742737605814,7.95276,2019.1,2019.0,1.49727151]
[1742737606117,7.95276,2019.1,2019.0,1.81510568]
[1742737609813,3.0,2019.1,2019.0,1.81510568]
[1742737610919,4.95221,2019.3,2019.0,3.31237719]
[1742737611119,4.9527,2019.1,2019.0,0.31783417]
[1742737611321,5.7183,2019.1,2019.0,0.31783417]
[1742737611619,4.95301,2019.0,2018.9,1.49727151]
[1742737611838,9.90618,2019.0,2018.6,4.95385]
[1742737611990,4.95327,2018.9,2018.8,1.49727151]
[1742737612816,4.95301,2019.0,2018.8,1.49727151]
[1742737612992,10.67127,2019.1,2018.9,1.49727151]
[1742737613190,4.95299,2019.0,2018.8,1.49727151]
[1742737613390,7.95276,2019.1,2018.8,2.28997151]
[1742737613590,7.95276,2019.1,2018.9,1.49727151]
[1742737613831,7.95276,2019.1,2019.0,1.49727151]
[1742737614038,7.95276,2019.1,2018.9,1.49727151]
[1742737615048,4.95276,2019.1,2018.9,1.49727151]
[1742737615404,9.90514,2019.2,2018.9,1.49727151]
[1742737616125,7.95249,2019.2,2019.0,1.49727151]
[1742737616626,7.95249,2019.2,2019.1,1.49727151]
[1742737616820,3.0,2019.2,2019.1,1.49727151]
[1742737617013,3.0,2019.2,2019.0,2.49092115]
[1742737618338,0.01195156,2019.4,2019.1,0.7927]
[1742737618502,3.01195156,2019.4,2019.2,2.49092115]
[1742737619025,0.01195156,2019.4,2019.3,4.95221]
[1742737619935,0.01195156,2019.4,2019.3,5.74491]
[1742737620235,0.01195156,2019.4,2019.3,0.31375781]
[1742737620609,4.96391156,2019.4,2019.3,0.31375781]
[1742737620927,4.95222,2019.3,2019.0,2.49092115]
[1742737621115,4.95222,2019.3,2019.0,7.10592115]
[1742737621312,9.90458,2019.3,2019.0,7.10592115]
[1742737621821,4.95222,2019.3,2019.0,7.10592115]
[1742737622028,4.95222,2019.3,2019.0,4.615]
[1742737622740,0.01195156,2019.4,2019.1,4.95259]
[1742737625358,0.01195156,2019.4,2019.3,4.95221]
[1742737625648,0.01195156,2019.4,2019.3,5.71811]
[1742737626144,0.01195156,2019.4,2019.3,6.26811]
[1742737634941,0.01195156,2019.4,2019.3,6.57944234]
[1742737636376,0.01195156,2019.4,2019.3,9.57944234]
[1742737645266,0.01195156,2019.4,2019.3,35.75944234]
[1742737650590,0.01195156,2019.4,2019.3,40.37144234]
[1742737657015,0.01195156,2019.4,2019.3,41.36738142]
[1742737661145,0.82475156,2019.4,2019.3,26.49133234]
[1742737661724,0.82475156,2019.4,2019.3,31.10333234]
[1742737664743,0.82475156,2019.4,2019.3,26.49133234]
[1742737665341,0.82475156,2019.4,2019.3,31.44354234]
[1742737670752,3.31580345,2019.4,2019.3,31.44354234]
[1742737673926,2.50300345,2019.4,2019.3,31.44354234]
[1742737675221,2.50300345,2019.4,2019.3,5.26354234]
[1742737679555,2.50300345,2019.4,2019.3,6.56834234]
[1742737679556,0.01195156,2019.4,2019.3,6.56834234]
[1742737680622,0.01195156,2019.4,2019.3,5.81354234]
[1742737684564,0.01195156,2019.4,2019.3,6.59384234]
[1742737684863,0.01195156,2019.4,2019.3,32.77584234]
[1742737687174,0.01195156,2019.4,2019.3,37.38784234]
[1742737688456,0.01195156,2019.4,2019.3,32.77584234]
[1742737688772,0.01195156,2019.4,2019.3,37.38784234]
[1742737688991,1.50611919,2019.4,2019.3,37.38784234]
[1742737691546,0.01195156,2019.4,2019.3,37.38784234]
[1742737696262,0.01195156,2019.4,2019.3,38.88200997]
[1742737697085,0.01195156,2019.4,2019.3,41.88200997]
[1742737702896,0.01195156,2019.4,2019.3,37.27000997]
[1742737703071,0.01195156,2019.4,2019.3,41.88100997]
[1742737705489,0.01195156,2019.4,2019.3,36.48970997]
[1742737705693,0.01195156,2019.4,2019.3,41.10070997]
[1742737711008,0.01195156,2019.4,2019.3,41.88480997]
[1742737711468,1.56e-06,2019.4,2019.3,41.88480997]
[1742737716915,1.56e-06,2019.4,2019.3,37.27380997]
[1742737717123,1.56e-06,2019.4,2019.3,41.88480997]
[1742737717620,1.56e-06,2019.4,2019.3,40.39064234]
[1742737717774,1.56e-06,2019.4,2019.3,34.99554234]
[1742737718116,1.56e-06,2019.4,2019.3,41.10070997]
[1742737719921,1.56e-06,2019.4,2019.3,39.60654234]
[1742737721525,1.56e-06,2019.4,2019.3,34.99554234]
[1742737721688,1.56e-06,2019.4,2019.3,39.60654234]
[1742737721889,1.56e-06,2019.4,2019.3,41.10070997]
[1742737722531,1.56e-06,2019.4,2019.3,36.48970997]
[1742737722690,1.56e-06,2019.4,2019.3,39.60654234]
[1742737723228,1.56e-06,2019.4,2019.3,41.10070997]
[1742737727122,1.56e-06,2019.4,2019.3,39.60654234]
[1742737727625,1.56e-06,2019.4,2019.3,41.10070997]
[1742737727804,1.56e-06,2019.4,2019.3,39.60654234]
[1742737730823,1.56e-06,2019.4,2019.3,34.99554234]
[1742737731121,1.56e-06,2019.4,2019.3,39.60654234]
[1742737735736,1.56e-06,2019.4,2019.3,41.10070997]
[1742737735905,1.56e-06,2019.4,2019.3,36.48970997]
[1742737736101,1.56e-06,2019.4,2019.3,39.60654234]
[1742737737427,1.56e-06,2019.4,2019.3,34.99554234]
[1742737737742,1.56e-06,2019.4,2019.3,39.60654234]
[1742737740399,1.56e-06,2019.4,2019.3,41.10070997]
[1742737741544,1.56e-06,2019.4,2019.3,39.60654234]
[1742737741952,1.56e-06,2019.4,2019.3,41.10070997]
[1742737742244,1.56e-06,2019.4,2019.3,41.89150997]
[1742737747659,1.56e-06,2019.4,2019.3,40.39734234]
[1742737748158,1.56e-06,2019.4,2019.3,41.89150997]
[1742737748461,1.56e-06,2019.4,2019.3,39.60554234]
[1742737748757,1.56e-06,2019.4,2019.3,41.09970997]
[1742737749762,1.56e-06,2019.4,2019.3,41.86980997]
[1742737773295,0.7585,2020.0,2019.4,3.55]
[1742737773594,0.7585,2020.0,2019.9,5.50074]
[1742737773895,0.7585,2020.0,2019.9,10.36529916]
[1742737782198,2.24766763,2020.2,2020.1,5.50024]
[1742737782578,2.24766763,2020.2,2020.1,5.75422264]
[1742737782764,0.7535,2020.2,2020.1,5.75422264]
[1742737784799,1.49416763,2020.6,2020.4,4.94951]
[1742737785101,1.49416763,2020.8,2020.5,3.36617841]
[1742737785309,1.49416763,2020.6,2020.5,5.32706315]
[1742737785470,2.24766763,2020.6,2020.5,5.32706315]
[1742737786103,0.7535,2020.6,2020.5,5.32706315]
[1742737787007,0.7535,2020.6,2020.5,5.87706315]
[1742737788222,0.7883,2020.8,2020.7,5.49878]
[1742737788711,0.7883,2021.2,2021.0,4.94795]
[1742737788899,2.28246763,2021.2,2021.1,4.9478]
[1742737789097,2.28246763,2021.2,2021.1,5.19668638]
[1742737790891,0.7883,2021.2,2021.1,5.74668638]
[1742737791782,0.7883,2021.2,2021.1,5.79615847]
[1742737791983,0.7883,2021.2,2021.1,5.74668638]
[1742737801326,2.28246763,2021.2,2021.1,0.79888638]
[1742737802352,0.7883,2021.2,2021.1,0.79888638]
[1742737802550,2.28246763,2021.2,2021.1,0.79888638]
[1742737803152,0.7883,2021.2,2021.1,0.79888638]
[1742737803559,0.7883,2021.2,2021.1,5.74668638]
[1742737805435,0.7883,2021.2,2021.1,0.79888638]
[1742737805755,0.7883,2021.2,2021.1,5.74668638]
[1742737807745,2.27256763,2021.4,2021.3,4.94731]
[1742737807950,2.27256763,2021.4,2021.2,9.8949]
[1742737808155,2.27256763,2021.4,2021.3,0.24430677]
[1742737808926,0.7784,2021.4,2021.3,0.24430677]
[1742737809123,2.27256763,2021.4,2021.3,0.24430677]
[1742737809830,2.27256763,2021.4,2021.3,5.19161677]
[1742737810051,0.7784,2021.4,2021.3,5.74161677]
[1742737810927,2.27256763,2021.4,2021.3,5.74161677]
[1742737811127,0.7784,2021.4,2021.3,5.74161677]
[1742737811328,2.27256763,2021.4,2021.3,5.74161677]
[1742737811735,0.7784,2021.4,2021.3,5.74161677]
[1742737812066,2.27256763,2021.4,2021.3,5.74161677]
[1742737812230,0.7784,2021.4,2021.3,5.74161677]
[1742737812659,2.27256763,2021.4,2021.3,5.74161677]
[1742737813469,1.49416763,2021.4,2021.3,5.74161677]
[1742737818049,0.7784,2021.6,2021.3,5.74161677]
[1742737818351,1.49416763,2021.4,2021.3,5.74161677]
[1742737822390,0.7784,2021.6,2021.3,5.74161677]
[1742737822579,1.49416763,2021.4,2021.3,10.68872677]
[1742737828705,1.49416763,2021.5,2021.4,5.49683]
[1742737829193,0.7784,2021.6,2021.5,5.49682]
[1742737829404,1.49416763,2021.7,2021.6,4.94657]
[1742737829691,1.49416763,2021.7,2021.6,5.18906137]
[1742737831300,1.49416763,2021.7,2021.6,5.34569559]
[1742737832504,2.21373839,2021.7,2021.6,5.34569559]
[1742737833001,1.49416763,2021.7,2021.6,5.34569559]
[1742737833195,1.49416763,2021.8,2021.6,5.34569559]
[1742737833399,2.31426763,2022.0,2021.6,5.34561559]
[1742737833610,2.31426763,2021.7,2021.6,0.39912559]
[1742737834303,2.31426763,2021.7,2021.6,5.34569559]
[1742737834474,1.49416763,2021.7,2021.6,5.34569559]
[1742737836605,0.8201,2021.9,2021.6,5.34569559]
[1742737836804,1.891223,2021.9,2021.6,5.34551559]
[1742737837103,1.49416763,2021.8,2021.7,4.94623]
[1742737837473,1.891223,2021.9,2021.7,5.34368357]
[1742737837673,1.49416763,2021.8,2021.7,5.34368357]
[1742737839225,1.891223,2021.9,2021.7,5.89368357]
[1742737839401,2.31426763,2021.9,2021.7,5.89356357]
[1742737839732,1.49416763,2021.8,2021.7,5.89356357]
[1742737842725,1.49416763,2021.8,2021.7,5.55145357]
[1742737843410,1.49416763,2021.8,2021.7,10.49778357]
[1742737843717,2.31426763,2021.8,2021.7,0.39745357]
[1742737843922,3.68426416,2021.8,2021.7,0.39745357]
[1742737844124,3.68426416,2021.8,2021.5,31.09973]
[1742737844290,1.09671406,2021.6,2021.5,31.09973]
[1742737844492,1.49416763,2021.6,2021.5,31.64973]
[1742737844691,1.49416763,2021.6,2021.5,32.01410475]
[1742737847227,1.49416763,2021.6,2021.5,0.36437475]
[1742737847228,2.68269405,2021.6,2021.5,0.36437475]
[1742737847395,4.94717,2021.4,2021.1,30.756]
[1742737847596,2.31426763,2021.2,2021.1,26.703]
[1742737847922,2.31426763,2021.2,2021.1,26.153]
[1742737849129,7.26181763,2021.2,2021.1,26.153]
[1742737849425,3.68460016,2021.2,2021.1,26.153]
[1742737849619,8.63215016,2021.2,2021.1,26.153]
[1742737850330,3.68460016,2021.2,2021.1,26.153]
[1742737851032,8.63215016,2021.2,2021.1,26.153]
[1742737851323,3.68460016,2021.2,2021.1,26.153]
[1742737851694,8.63215016,2021.2,2021.1,26.153]
[1742737852232,3.68460016,2021.2,2021.1,26.153]
[1742737852832,8.63215016,2021.2,2021.1,26.153]
[1742737853626,8.56465016,2021.2,2021.1,26.153]
[1742737855533,0.7526,2020.9,2020.6,5.49895]
[1742737855733,0.7526,2020.9,2020.6,10.10295]
[1742737855900,2.24676763,2020.9,2020.6,10.10295]
[1742737856100,1.49416763,2020.8,2020.6,10.10295]
[1742737856600,1.49416763,2020.8,2020.6,15.05178]
[1742737856800,2.24676763,2020.9,2020.6,15.05178]
[1742737857132,1.49416763,2020.8,2020.6,15.05178]
[1742737858001,2.24676763,2020.9,2020.6,15.05178]
[1742737859932,2.24676763,2020.9,2020.7,0.33812856]
[1742737860441,2.24676763,2020.9,2020.8,0.33780495]
[1742737860732,7.91463139,2020.9,2020.8,0.30965454]
[1742737861435,7.91463139,2020.9,2020.5,35.71211]
[1742737861633,1.49416763,2020.7,2020.6,0.31030179]
[1742737867547,7.23274763,2020.7,2020.6,0.31030179]
[1742737872348,7.23274763,2020.7,2020.2,4.94995]
[1742737872349,4.94913,2020.6,2020.2,4.94995]
[1742737872549,1.49416763,2020.4,2020.2,4.94995]
[1742737874450,1.49416763,2020.4,2020.2,9.89985]
[1742737874759,1.49416763,2020.5,2020.3,4.94975]
[1742737874973,1.49416763,2020.5,2020.3,5.22861776]
[1742737878935,1.49416763,2020.4,2020.3,0.27886776]
[1742737879141,1.49416763,2020.5,2020.3,0.27886776]
[1742737879454,1.49416763,2020.5,2020.3,5.22861776]
[1742737880367,1.49416763,2020.5,2020.4,4.94951]
[1742737880724,1.49416763,2020.5,2020.4,5.22827601]
[1742737881865,1.49416763,2020.5,2020.4,0.27876601]
[1742737882064,1.49416763,2020.5,2020.3,4.94969]
[1742737882266,1.49416763,2020.5,2020.4,0.27876601]
[1742737882463,1.49416763,2020.5,2020.3,4.94969]
[1742737882665,1.49416763,2020.5,2020.4,0.27876601]
[1742737882854,1.49416763,2020.5,2020.3,4.94969]
[1742737883163,1.49416763,2020.5,2020.4,0.27876601]
[1742737883468,1.49416763,2020.5,2020.3,4.94969]
[1742737883768,1.49416763,2020.5,2020.4,0.27876601]
[1742737884060,1.49416763,2020.5,2020.3,4.94969]
[1742737884267,1.49416763,2020.4,2020.2,4.94998]
[1742737886468,1.49416763,2020.4,2020.3,0.45890417]
[1742737889963,1.49416763,2020.4,2020.3,0.69443864]
[1742737890339,1.49416763,2020.4,2020.3,0.23553447]
[1742737891383,5.71139,2020.5,2020.3,5.18524447]
[1742737891384,2.25626763,2020.5,2020.3,5.18524447]
[1742737891675,4.9491,2020.6,2020.4,4.94942]
[1742737891676,1.49416763,2020.6,2020.4,4.94942]
[1742737891873,1.49416763,2020.6,2020.5,0.23488702]
[1742737892172,1.49416763,2020.6,2020.3,5.40852417]
[1742737892362,1.49416763,2020.6,2020.5,0.23488702]
[1742737892545,2.70957239,2020.6,2020.4,0.23521073]
[1742737892752,2.70957239,2020.6,2020.5,0.23488702]
[1742737893051,2.70957239,2020.6,2020.4,0.45890417]
[1742737893254,2.70957239,2020.6,2020.5,0.23488702]
[1742737894144,3.54017239,2020.6,2020.5,0.23488702]
[1742737894344,8.48919239,2020.6,2020.5,0.23488702]
[1742737894868,8.48919239,2020.6,2020.2,9.89985]
[1742737895070,1.49416763,2020.5,2020.3,0.23553447]
[1742737896269,1.49416763,2020.5,2020.3,5.18526447]
[1742737897348,1.49416763,2020.5,2020.4,0.45943032]
[1742737897762,1.49416763,2020.5,2020.4,0.69464105]
[1742737897958,2.71643339,2020.5,2020.4,0.69464105]
[1742737899049,2.32476763,2020.8,2020.6,4.94891]
[1742737899249,1.49416763,2021.0,2020.9,5.49829]
[1742737899445,1.49416763,2021.1,2020.9,0.78354336]
[1742737899660,1.49416763,2021.0,2020.9,0.78354336]
[1742737900256,1.49416763,2021.0,2020.9,0.23354336]
[1742737900491,1.49416763,2021.0,2020.8,5.75872]
[1742737900678,1.49416763,2021.0,2020.9,0.23354336]
[1742737900879,9.89538,2021.2,2020.8,5.75872]
[1742737900880,2.48686113,2021.1,2020.8,5.75872]
[1742737901180,3.80814524,2021.1,2020.9,0.23354336]
[1742737901548,3.80814524,2021.1,2020.8,5.75872]
[1742737901752,3.80814524,2021.1,2021.0,0.23321981]
[1742737902283,3.80814524,2021.1,2020.8,5.75872]
[1742737902587,8.75597524,2021.1,2020.9,0.23354336]
[1742737902764,1.37036152,2021.0,2020.9,0.23354336]
[1742737902950,1.37036152,2021.0,2020.8,0.55]
[1742737903283,1.37036152,2021.0,2020.9,0.23354336]
[1742737903449,1.37036152,2021.0,2020.8,0.55]
[1742737903646,7.43469113,2021.1,2020.9,0.23354336]
[1742737903881,7.43469113,2021.1,2020.8,0.55]
[1742737904073,7.43469113,2021.1,2020.9,0.23354336]
[1742737904277,7.43469113,2021.1,2020.8,0.55]
[1742737904480,7.43469113,2021.1,2020.9,0.23354336]
[1742737904664,8.75598424,2021.1,2020.8,0.55]
[1742737904981,8.75598424,2021.1,2020.9,0.23354336]
[1742737905282,8.75598424,2021.1,2020.8,0.55]
[1742737905483,8.75598424,2021.1,2020.9,0.23354336]
[1742737905682,8.75598424,2021.1,2020.8,0.55]
[1742737905891,4.94804,2021.0,2020.9,0.23354336]
[1742737906097,6.31844242,2021.0,2020.7,0.55]
[1742737906255,4.94804,2021.0,2020.8,0.23386694]
[1742737916599,9.89626,2021.0,2020.8,0.23386694]
[1742737917300,2.48686113,2020.9,2020.8,0.23386694]
[1742737917594,8.25955113,2020.9,2020.6,26.165]
[1742737917800,4.94866,2020.8,2020.6,26.165]
[1742737918499,8.25962113,2020.9,2020.6,26.165]
[1742737918865,8.25962113,2020.9,2020.6,31.11398]
[1742737919369,8.25962113,2020.9,2020.6,26.165]
[1742737919902,8.25962113,2020.9,2020.7,0.23315928]
[1742737920111,8.25962113,2020.9,2020.6,26.165]
[1742737920270,8.25962113,2020.9,2020.7,0.23315928]
[1742737920470,8.25962113,2020.9,2020.6,26.165]
[1742737920773,8.25962113,2020.9,2020.7,0.23315928]
[1742737920973,7.82765884,2020.9,2020.7,0.23315928]
[1742737921273,7.82765884,2020.9,2020.8,0.23283566]
[1742737921478,4.94878,2020.7,2020.6,26.165]
[1742737921701,7.26554097,2020.7,2020.6,26.165]
[1742737923367,2.31676097,2020.7,2020.6,26.165]
[1742737923712,5.51082787,2020.9,2020.6,31.11388]
[1742737923713,1.36473787,2020.9,2020.6,31.11388]
[1742737923913,1.49236097,2020.8,2020.6,31.11388]
[1742737924579,1.49236097,2020.9,2020.6,36.06281]
[1742737924779,1.49236097,2020.9,2020.6,36.84681]
[1742737925181,1.49236097,2020.9,2020.7,4.94871]
[1742737925378,10.35401,2021.1,2020.6,26.949]
[1742737925379,1.49236097,2021.0,2020.6,26.949]
[1742737925587,1.49236097,2021.0,2020.7,4.94861]
[1742737926990,8.23700532,2021.1,2020.7,4.94861]
[1742737927191,10.31588385,2021.1,2020.7,4.94861]
[1742737928223,10.31588385,2021.1,2020.7,9.89727]
[1742737928683,10.31588385,2021.1,2020.8,4.9485]
[1742737929119,10.31588385,2021.1,2020.9,0.213502]
[1742737929316,10.31588385,2021.1,2020.8,4.9485]
[1742737929525,10.31588385,2021.1,2020.9,0.213502]
[1742737929696,10.31588385,2021.1,2020.8,4.9485]
[1742737929895,10.31588385,2021.1,2020.9,0.213502]
[1742737930099,10.31588385,2021.1,2020.7,5.4987]
[1742737930424,8.23700532,2021.1,2020.8,0.21382558]
[1742737933040,8.23700532,2021.1,2020.8,5.16234558]
[1742737933191,3.28918532,2021.1,2020.8,5.16234558]
[1742737934118,8.23700532,2021.1,2020.8,5.16234558]
[1742737935323,7.43480532,2021.1,2020.8,0.21382558]
[1742737936223,7.43480532,2021.1,2020.8,5.16230558]
[1742737936590,2.48698532,2021.1,2020.8,5.16230558]
[1742737938825,2.48698532,2021.1,2020.8,5.16218558]
[1742737939024,2.48698532,2021.1,2020.8,10.87025558]
[1742737939224,2.48698532,2021.1,2020.8,5.92188558]
[1742737944227,4.10539685,2021.1,2020.8,5.92188558]
[1742737949030,1.49209347,2021.0,2020.8,5.92188558]